lending/lending_fUSD_20240512
["ID","MTS","AMOUNT","RATE_DAILY","PERIOD"]
[326857058,1715517043722,-1743.48,0.00012889,14]
[326857060,1715517043731,-1743.48,0.00012889,15]
[326857062,1715517043741,-1743.48,0.00012889,16]
[326857064,1715517043750,-1743.48,0.00012889,17]
[326857066,1715517043759,-1743.48,0.00012889,18]
[326857067,1715517043768,-1743.48,0.00012889,19]
[326857069,1715517043777,-6571.75,0.00012889,12]
[326857071,1715517043786,-4368.91926396,0.00012889,13]
[326857075,1715517043813,-500.0,0.00012849,2]
[326857077,1715517043822,-2202.83073604,0.00012889,13]
[326857079,1715517043832,-270.36605998,0.00012889,14]
[326857082,1715517043844,-2941.10044323,0.00012889,14]
[326857084,1715517043855,-3360.28349679,0.00012889,14]
[326857086,1715517043864,-560.56292369,0.00012889,15]
[326857088,1715517043876,-6011.18707631,0.00012889,15]
[326857090,1715517043885,-4960.08,0.00012889,2]
[326857092,1715517043895,-6571.75,0.00012889,16]
[326857094,1715517043904,-4960.08,0.00012889,3]
[326857096,1715517043914,-6571.75,0.00012889,17]
[326857098,1715517043923,-594.36,0.00012889,2]
[326857100,1715517043933,-4960.08,0.00012889,4]
[326857102,1715517043942,-6571.75,0.00012889,18]
[326857104,1715517043952,-594.36,0.00012889,3]
[326857106,1715517043961,-4960.08,0.00012889,5]
[326857108,1715517043970,-6571.75,0.00012889,19]
[326857110,1715517043980,-594.36,0.00012889,4]
[326857112,1715517043989,-4960.08,0.00012889,6]
[326857114,1715517043999,-6571.75,0.00012889,20]
[326857116,1715517044008,-594.36,0.00012889,5]
[326857118,1715517044017,-4960.08,0.00012889,7]
[326857120,1715517044027,-1179.57857294,0.00012889,21]
[326857125,1715517044058,-500.0,0.00012887,6]
[326857127,1715517044067,-2063.85387638,0.00012889,21]
[326857129,1715517044078,-3328.31755068,0.00012889,21]
[326857131,1715517044088,-594.36,0.00012889,6]
[326857133,1715517044100,-6571.75,0.00012889,21]
[326857135,1715517044119,-4960.08,0.00012889,8]
[326857137,1715517044138,-594.36,0.00012889,7]
[326857139,1715517044155,-4960.08,0.00012889,9]
[326857141,1715517044165,-6571.75,0.00012889,21]
[326857143,1715517044175,-4960.08,0.00012889,10]
[326857145,1715517044184,-594.36,0.00012889,8]
[326857147,1715517044193,-4105.78918091,0.00012889,21]
[326857149,1715517044205,-2465.96081909,0.00012889,21]
[326857151,1715517044214,-4960.08,0.00012889,11]
[326857153,1715517044223,-6571.83397644,0.00012889,21]
[326857155,1715517044233,-4960.08,0.00012889,12]
[326857157,1715517044242,-8681.61,0.00012889,5]
[326857159,1715517044251,-4506.22,0.00012889,12]
[326857161,1715517044262,-4506.22,0.00012889,13]
[326857163,1715517044271,-8681.61,0.00012889,6]
[326857165,1715517044280,-4506.22,0.00012889,14]
[326857166,1715517044289,-500.0,0.00012889,2]
[326857167,1715517044299,-8681.61,0.00012889,7]
[326857168,1715517044308,-4506.22,0.00012889,15]
[326857169,1715517044318,-500.0,0.00012889,3]
[326857170,1715517044327,-3969.42289832,0.00012889,8]
[326857171,1715517044343,-4712.18710168,0.00012889,8]
[326857193,1715517044579,-1552.47289831,0.00012889,16]
[326857225,1715517045501,-500.0,0.00012849,2]
[326857226,1715517045510,-500.0,0.00012849,3]
[326857227,1715517045519,-500.0,0.00012849,4]
[326857228,1715517045529,-500.0,0.00012888,7]
[326857230,1715517045539,-155.24,0.00012888,8]
[326857231,1715517045548,-500.0,0.00012888,15]
[326857232,1715517045557,-500.0,0.00012888,7]
[326857233,1715517045566,-347.15,0.00012888,16]
[326857234,1715517045576,-500.0,0.00012888,8]
[326857235,1715517045585,-500.0,0.00012888,9]
[326857236,1715517045594,-500.0,0.00012888,5]
[326857237,1715517045604,-500.0,0.00012888,10]
[326857238,1715517045613,-500.0,0.00012888,6]
[326857239,1715517045623,-500.0,0.00012888,11]
[326857240,1715517045631,-500.0,0.00012888,7]
[326857241,1715517045640,-500.0,0.00012888,12]
[326857242,1715517045650,-2953.74710169,0.00012889,16]
[326857243,1715517045659,-500.0,0.00012889,4]
[326857244,1715517045668,-1923.3,0.00012889,2]
[326857245,1715517045677,-8681.61,0.00012889,9]
[326857246,1715517045686,-4506.22,0.00012889,17]
[326857247,1715517045695,-500.0,0.00012889,5]
[326857248,1715517045703,-8681.61,0.00012889,10]
[326857249,1715517045712,-1923.3,0.00012889,3]
[326857250,1715517045721,-4506.22,0.00012889,18]
[326857251,1715517045730,-500.0,0.00012889,6]
[326857252,1715517045739,-8681.61,0.00012889,11]
[326857253,1715517045748,-4506.22,0.00012889,19]
[326857254,1715517045758,-500.0,0.00012889,7]
[326857255,1715517045767,-8681.61,0.00012889,12]
[326857256,1715517045776,-4506.22,0.00012889,20]
[326857257,1715517045786,-531.26658634,0.00012889,8]
[326857258,1715517045795,-8681.61,0.00012889,13]
[326857259,1715517045805,-4506.22,0.00012889,21]
[326857260,1715517045814,-8681.61,0.00012889,14]
[326857261,1715517045823,-4506.22,0.00012889,21]
[326857262,1715517045832,-8681.61,0.00012889,15]
[326857263,1715517045842,-4506.22,0.00012889,21]
[326857264,1715517045851,-8681.61,0.00012889,16]
[326857265,1715517045860,-4506.22,0.00012889,21]
[326857266,1715517045869,-8681.61,0.00012889,17]
[326857267,1715517045883,-4506.45716639,0.00012889,21]
[326857268,1715517045892,-8681.61,0.00012889,18]
[326857269,1715517045902,-8681.61,0.00012889,19]
[326857270,1715517045911,-2856.67,0.00012889,2]
[326857271,1715517045920,-2856.67,0.00012889,3]
[326857272,1715517045929,-2856.67,0.00012889,4]
[326857273,1715517045938,-2856.67,0.00012889,5]
[326857274,1715517045947,-2856.67,0.00012889,6]
[326857275,1715517045956,-2004.00530055,0.00012889,7]
[326857276,1715517045970,-656.14,0.00012889,7]
[326857277,1715517045983,-196.52469945,0.00012889,7]
[326857278,1715517045994,-2856.67,0.00012889,8]
[326857279,1715517046007,-445.89576672,0.00012889,2]
[326857280,1715517046017,-3544.41,0.00012889,5]
[326857281,1715517046028,-359.83032671,0.00012889,6]
[326857283,1715517046040,-3184.57967329,0.00012889,6]
[326857284,1715517046049,-155.03924646,0.00012889,7]
[326857287,1715517046066,-728.05842579,0.00012889,7]
[326857289,1715517046078,-861.78488582,0.00012889,7]
[326857292,1715517046089,-1799.52744193,0.00012889,7]
[326857294,1715517046100,-972.62955807,0.00012889,8]
[326857296,1715517046114,-511.065,0.00012889,8]
[326857298,1715517046125,-401.91663883,0.00012889,8]
[326857302,1715517046153,-500.0,0.00012888,8]
[326857304,1715517046162,-304.97781834,0.00012889,8]
[326857306,1715517046173,-1353.82098476,0.00012889,8]
[326857308,1715517046185,-3544.41,0.00012889,9]
[326857310,1715517046195,-3544.41,0.00012889,10]
[326857312,1715517046205,-3544.41,0.00012889,11]
[326857314,1715517046214,-3544.41,0.00012889,12]
[326857316,1715517046224,-3544.41,0.00012889,13]
[326857318,1715517046233,-3544.41,0.00012889,14]
[326857320,1715517046242,-3544.41,0.00012889,15]
[326857322,1715517046252,-3544.41,0.00012889,16]
[326857324,1715517046261,-500.0,0.00012889,2]
[326857326,1715517046271,-3544.41,0.00012889,17]
[326857329,1715517046280,-3544.41,0.00012889,18]
[326857331,1715517046289,-500.0,0.00012889,3]
[326857333,1715517046299,-3544.41,0.00012889,19]
[326857335,1715517046309,-516.91240021,0.00012889,2]
[326857336,1715517046318,-2420.22,0.00012889,2]
[326857339,1715517046328,-2420.22,0.00012889,3]
[326857341,1715517046337,-2420.22,0.00012889,4]
[326857343,1715517046346,-2420.22,0.00012889,5]
[326857345,1715517046356,-2420.22,0.00012889,6]
[326857347,1715517046365,-2420.22,0.00012889,7]
[326857349,1715517046375,-2020.79,0.00012889,12]
[326857351,1715517046384,-1061.48619652,0.00012889,8]
[326857419,1715517047006,-840.25339436,0.00012889,8]
[326857433,1715517047122,-518.48040912,0.00012889,8]
[326857435,1715517047132,-429.24084762,0.00012889,13]
[326857437,1715517047143,-1591.54915238,0.00012889,13]
[326857439,1715517047152,-1356.86932328,0.00012889,14]
[326857441,1715517047164,-663.92067672,0.00012889,14]
[326857443,1715517047173,-151.0,0.00012889,2]
[326857445,1715517047183,-2020.79,0.00012889,15]
[326857447,1715517047193,-2020.79,0.00012889,16]
[326857449,1715517047202,-2020.79,0.00012889,17]
[326857451,1715517047212,-2020.79,0.00012889,18]
[326857453,1715517047221,-151.0,0.00012889,2]
[326857455,1715517047230,-2020.79,0.00012889,19]
[326857457,1715517047239,-7164.37,0.00012889,5]
[326857460,1715517047249,-151.0,0.00012889,2]
[326857462,1715517047258,-2020.79,0.00012889,20]
[326857464,1715517047267,-7164.37,0.00012889,6]
[326857466,1715517047277,-2020.79,0.00012889,21]
[326857468,1715517047286,-2983.12659403,0.00012889,7]
[326857470,1715517047298,-2776.2492688,0.00012889,7]
[326857472,1715517047310,-1404.99413717,0.00012889,7]
[326857474,1715517047319,-151.0,0.00012889,2]
[326857476,1715517047329,-2020.79,0.00012889,21]
[326857478,1715517047338,-2020.79,0.00012889,21]
[326857480,1715517047347,-531.13270546,0.00012889,2]
[326857482,1715517047356,-2020.79,0.00012889,21]
[326857484,1715517047365,-7164.37,0.00012889,8]
[326857486,1715517047374,-500.0,0.00012889,2]
[326857488,1715517047384,-500.0,0.00012889,3]
[326857490,1715517047393,-2634.49,0.00012889,2]
[326857493,1715517047403,-2020.82006633,0.00012889,21]
[326857495,1715517047413,-7164.37,0.00012889,9]
[326857496,1715517047422,-2634.49,0.00012889,3]
[326857498,1715517047432,-7164.37,0.00012889,10]
[326857501,1715517047441,-2634.49,0.00012889,4]
[326857502,1715517047450,-7164.37,0.00012889,11]
[326857504,1715517047459,-2634.49,0.00012889,5]
[326857506,1715517047468,-3130.31204313,0.00012889,12]
[326857511,1715517047499,-500.0,0.00012888,13]
[326857513,1715517047508,-4034.05795687,0.00012889,12]
[326857515,1715517047517,-1322.37510479,0.00012889,6]
[326857517,1715517047529,-1312.11489521,0.00012889,6]
[326857519,1715517047539,-3956.19304708,0.00012889,13]
[326857620,1715517048568,-750.8,0.00010959,2]
[326857622,1715517048578,-500.0,0.00012849,2]
[326857624,1715517048587,-500.0,0.00012849,3]
[326857626,1715517048596,-500.0,0.00012849,4]
[326857628,1715517048605,-699.27,0.00012849,2]
[326857630,1715517048614,-500.0,0.00012849,2]
[326857631,1715517048623,-699.27,0.00012849,3]
[326857632,1715517048632,-500.0,0.00012888,9]
[326857633,1715517048640,-500.0,0.00012888,14]
[326857634,1715517048649,-535.94960614,0.00012888,10]
[326857635,1715517048657,-500.0,0.00012888,15]
[326857636,1715517048667,-500.0,0.00012888,16]
[326857637,1715517048676,-470.56772103,0.00012888,17]
[326857638,1715517048685,-3208.17695292,0.00012889,13]
[326857639,1715517048695,-2634.49,0.00012889,7]
[326857640,1715517048705,-2634.49,0.00012889,8]
[326857641,1715517048714,-7164.37,0.00012889,14]
[326857642,1715517048723,-500.0,0.00012889,2]
[326857643,1715517048732,-500.0,0.00012889,2]
[326857644,1715517048742,-2634.49,0.00012889,9]
[326857645,1715517048751,-531.75828593,0.00012889,3]
[326857646,1715517048760,-150.12108249,0.00012889,3]
[326857647,1715517048770,-2634.49,0.00012889,10]
[326857648,1715517048780,-7164.37,0.00012889,15]
[326857649,1715517048789,-2634.49,0.00012889,11]
[326857650,1715517048799,-7164.37,0.00012889,16]
[326857651,1715517048808,-2634.49,0.00012889,12]
[326857652,1715517048817,-869.45126588,0.00012889,17]
[326857653,1715517050104,-365.87237198,0.00012848,2]
[326857654,1715517050114,-155.0,0.00012848,2]
[326857655,1715517050124,-307.50757653,0.00012849,3]
[326857656,1715517050144,-192.49242347,0.00012849,3]
[326857657,1715517050155,-681.39317145,0.00012849,4]
[326857658,1715517050168,-17.87682855,0.00012849,4]
[326857659,1715517050177,-500.0,0.00012849,4]
[326857660,1715517050190,-500.0,0.00012849,5]
[326857661,1715517050200,-500.0,0.00012849,2]
[326857662,1715517050210,-377.6,0.00012849,3]
[326857663,1715517050219,-500.0,0.00012887,6]
[326857664,1715517050229,-699.27,0.00012888,5]
[326857665,1715517050239,-699.27,0.00012888,6]
[326857666,1715517050249,-471.15772196,0.00012888,7]
[326857667,1715517050262,-228.11227804,0.00012888,7]
[326857668,1715517050272,-509.40705301,0.00012888,8]
[326857669,1715517050544,-189.86294699,0.00012888,8]
[326857670,1715517050555,-500.0,0.00012888,7]
[326857671,1715517050566,-699.27,0.00012888,9]
[326857672,1715517050576,-500.0,0.00012888,8]
[326857673,1715517050587,-699.27,0.00012888,10]
[326857674,1715517050596,-72.1635555,0.00012888,9]
[326857675,1715517050633,-427.8364445,0.00012888,9]
[326857676,1715517050643,-699.27,0.00012888,11]
[326857677,1715517050652,-340.8935555,0.00012888,10]
[326857678,1715517050665,-159.1064445,0.00012888,10]
[326857679,1715517050674,-153.03440952,0.00012888,11]
[326857680,1715517057596,283.75807523,5.867e-05,2]
[326857681,1715517509263,-155.0,7.784e-05,2]
[326857682,1715517509295,-155.0,7.784e-05,2]
[326857683,1715517509323,-155.0,7.785e-05,2]
[326857684,1715517509345,-135.0,7.785e-05,2]
[326857686,1715517623184,-364.05066238,7.776e-05,2]
[326857687,1715517623205,-162.46980569,7.777e-05,2]
[326857688,1715517623226,-73.47953193,7.778e-05,2]
[326857720,1715518231888,-262.86247652,7.741e-05,2]
[326857721,1715518231898,-155.0,7.742e-05,2]
[326857722,1715518231907,-155.0,7.743e-05,2]
[326857723,1715518231916,-446.04412158,7.743e-05,2]
[326857724,1715518231926,-155.0,7.744e-05,2]
[326857725,1715518231935,-155.0,7.744e-05,2]
[326857726,1715518231944,-3282.0222397,7.744e-05,2]
[326857727,1715518231953,-4273.84532325,7.745e-05,2]
[326857728,1715518231962,-1244.2402654,7.746e-05,2]
[326857729,1715518231971,-18379.87532668,7.746e-05,2]
[326857730,1715518231980,-938.73301384,7.763e-05,2]
[326857731,1715518231989,-1271.62688925,7.796e-05,2]
[326857732,1715518231999,-836.6898477,7.812e-05,2]
[326857733,1715518232008,-1403.32813573,7.819e-05,2]
[326857734,1715518232018,-1192.41227948,7.822e-05,2]
[326857735,1715518232027,-15066.85307829,7.822e-05,2]
[326857736,1715518232036,-366.57771071,7.822e-05,2]
[326857737,1715518232046,-2739.9418,7.822e-05,2]
[326857738,1715518232055,-298.56741175,0.0001,2]
[326857739,1715518232064,-256.65,0.00010636,2]
[326857740,1715518232073,-159.31,0.00010738,2]
[326857741,1715518232082,-4000.0,0.00010959,3]
[326857742,1715518232091,-173.54,0.00010983,2]
[326857743,1715518232100,-250.0,0.00010994,2]
[326857744,1715518232109,-159.31,0.00011018,2]
[326857745,1715518232119,-159.31,0.00011297,2]
[326857746,1715518232128,-250.0,0.00011317,2]
[326857747,1715518232138,-1000.0,0.00011546,2]
[326857748,1715518232147,-165.44,0.00011646,2]
[326857749,1715518232157,-172.24,0.000118,2]
[326857750,1715518232165,-171.28,0.00012033,2]
[326857751,1715518232174,-6591.414,0.00012592,2]
[326857752,1715518232184,-1260.2177,0.00012592,2]
[326857753,1715518232193,-10000.0,0.00012642,2]
[326857754,1715518232203,-500.0,0.0001269,2]
[326857755,1715518232211,-917.19,0.0001269,2]
[326857756,1715518232221,-1850.24,0.0001269,2]
[326857757,1715518232231,-1003.26,0.0001269,2]
[326857758,1715518232239,-1989.69,0.0001269,2]
[326857759,1715518232249,-500.0,0.0001269,2]
[326857760,1715518232258,-936.27,0.0001269,2]
[326857761,1715518232267,-2914.29,0.0001269,2]
[326857762,1715518232277,-551.09,0.0001269,2]
[326857763,1715518232286,-1150.13,0.0001269,2]
[326857765,1715518232295,-2170.4,0.0001269,2]
[326857793,1715518232587,-3578.81,0.0001269,2]
[326857795,1715518232597,-886.11,0.0001269,2]
[326857797,1715518232607,-2650.41,0.0001269,2]
[326857799,1715518232617,-500.0,0.0001269,2]
[326857801,1715518232627,-4552.31,0.0001269,2]
[326857803,1715518232636,-1184.72,0.0001269,2]
[326857805,1715518232645,-3371.04,0.0001269,2]
[326857807,1715518232654,-1002.89,0.0001269,2]
[326857809,1715518232664,-969.42,0.0001269,2]
[326857811,1715518232674,-2248.10059169,0.0001269,2]
[326857813,1715518232693,-727.93940831,0.0001269,2]
[326857815,1715518232702,-1627.71,0.00012691,2]
[326857817,1715518232711,-5520.78586367,0.00012691,2]
[326857819,1715518232722,-6022.81413633,0.00012691,2]
[326857821,1715518232731,-500.0,0.00012691,2]
[326857823,1715518232739,-500.0,0.00012691,2]
[326857825,1715518232749,-540.84905695,0.00012691,2]
[326857826,1715518232762,-2954.55,0.00012691,2]
[326857828,1715518232775,-500.0,0.00012691,2]
[326857830,1715518232784,-3124.31,0.00012691,2]
[326857832,1715518232793,-1036.81,0.00012691,2]
[326857833,1715518232802,-500.0,0.00012691,2]
[326857834,1715518232811,-500.0,0.00012691,2]
[326857835,1715518232820,-500.0,0.00012691,2]
[326857836,1715518232829,-528.78956627,0.00012691,2]
[326857837,1715518232838,-1242.83,0.00012691,2]
[326857838,1715518232847,-500.0,0.00012691,2]
[326857839,1715518232856,-1503.26,0.00012691,2]
[326857840,1715518232865,-3494.66,0.00012691,2]
[326857841,1715518232874,-3760.21,0.00012691,2]
[326857842,1715518232883,-26807.55,0.00012691,2]
[326857843,1715518232892,-1372.71,0.00012691,2]
[326857844,1715518232901,-1782.75,0.00012691,2]
[326857845,1715518232910,-500.0,0.00012691,2]
[326857846,1715518232919,-527.98900621,0.00012691,2]
[326857847,1715518232928,-500.0,0.00012691,2]
[326857848,1715518232937,-649.41,0.00012691,2]
[326857850,1715518232946,-518.71,0.00012691,2]
[326857852,1715518232955,-500.0,0.00012691,2]
[326857854,1715518232964,-2411.26,0.00012691,2]
[326857856,1715518232973,-1900.89,0.00012691,2]
[326857858,1715518232982,-874.0,0.00012691,2]
[326857860,1715518232991,-500.0,0.00012691,2]
[326857861,1715518233001,-5749.65,0.00012691,2]
[326857863,1715518233010,-500.0,0.00012691,2]
[326857865,1715518233019,-500.0,0.00012691,2]
[326857867,1715518233028,-8748.47,0.00012691,2]
[326857869,1715518233037,-592.39,0.00012691,2]
[326857871,1715518233046,-500.0,0.00012691,2]
[326857873,1715518233054,-10806.38,0.00012691,2]
[326857875,1715518233063,-947.25,0.00012691,2]
[326857877,1715518233073,-2306.01,0.00012691,2]
[326857879,1715518233082,-500.0,0.00012691,2]
[326857881,1715518233090,-1775.56,0.00012691,2]
[326857883,1715518233099,-500.0,0.00012691,2]
[326857885,1715518233109,-500.0,0.00012691,2]
[326857887,1715518233118,-2322.88,0.00012691,2]
[326857889,1715518233127,-500.0,0.00012691,2]
[326857891,1715518233136,-948.44,0.00012691,2]
[326857893,1715518233145,-500.0,0.00012691,2]
[326857895,1715518233154,-3712.48,0.00012691,2]
[326857897,1715518233163,-901.14,0.00012691,2]
[326857899,1715518233172,-500.0,0.00012691,2]
[326857901,1715518233182,-508.44,0.00012691,2]
[326857903,1715518233191,-500.0,0.00012691,2]
[326857905,1715518233200,-2586.99,0.00012691,2]
[326857908,1715518233210,-1819.61,0.00012691,2]
[326857910,1715518233219,-1670.85,0.00012691,2]
[326857912,1715518233228,-1136.82,0.00012691,2]
[326857914,1715518233237,-500.0,0.00012691,2]
[326857915,1715518233246,-525.91491697,0.00012691,2]
[326857917,1715518233255,-601.15,0.00012691,2]
[326857919,1715518233264,-1106.7,0.00012691,2]
[326857922,1715518233274,-500.0,0.00012691,2]
[326857923,1715518233282,-500.0,0.00012691,2]
[326857926,1715518233292,-515.7,0.00012691,2]
[326857927,1715518233301,-500.0,0.00012691,2]
[326857929,1715518233310,-1417.53,0.00012691,2]
[326857932,1715518233320,-500.0,0.00012691,2]
[326857934,1715518233329,-590.6727626,0.00012691,2]
[326857936,1715518233339,-655.49,0.00012691,2]
[326857938,1715518233349,-19825.61,0.00012691,2]
[326857939,1715518233358,-1678.64,0.00012691,2]
[326857941,1715518233368,-1278.34,0.00012691,2]
[326857942,1715518233377,-9199.43,0.00012691,2]
[326857943,1715518233388,-2387.96,0.00012691,2]
[326857944,1715518233398,-500.0,0.00012691,2]
[326857945,1715518233407,-500.0,0.00012691,2]
[326857946,1715518233417,-1055.49,0.00012691,2]
[326857947,1715518233426,-500.0,0.00012691,2]
[326857948,1715518233436,-522.42925097,0.00012691,2]
[326857949,1715518233446,-500.0,0.00012691,2]
[326857950,1715518233456,-500.0,0.00012691,2]
[326857951,1715518233466,-6142.83,0.00012691,2]
[326857952,1715518233475,-500.0,0.00012691,2]
[326857953,1715518233484,-500.0,0.00012691,2]
[326857954,1715518233493,-4373.47,0.00012691,2]
[326857955,1715518233509,-964.23,0.00012691,2]
[326857956,1715518233519,-500.0,0.00012691,2]
[326857957,1715518233529,-513.59243124,0.00012691,2]
[326857958,1715518233538,-500.0,0.00012691,2]
[326857959,1715518233552,-1987.69,0.00012691,2]
[326857960,1715518233561,-628.91176833,0.00012691,2]
[326857961,1715518233571,-1224.07,0.00012691,2]
[326857962,1715518233583,-500.0,0.00012691,2]
[326857963,1715518233592,-1231.39,0.00012691,2]
[326857964,1715518233602,-7042.15,0.00012691,2]
[326857965,1715518233612,-500.0,0.00012691,2]
[326857966,1715518233622,-173.94,0.00012691,2]
[326857967,1715518233631,-500.0,0.00012691,2]
[326857968,1715518233641,-3413.31,0.00012691,2]
[326857969,1715518233650,-2916.34,0.00012691,2]
[326857970,1715518233659,-534.99,0.00012691,2]
[326857971,1715518233668,-7957.59,0.00012691,2]
[326857972,1715518233677,-2374.28,0.00012691,2]
[326857973,1715518233686,-500.0,0.00012691,2]
[326857974,1715518233695,-500.0,0.00012691,2]
[326857975,1715518233704,-500.0,0.00012691,2]
[326857976,1715518233714,-517.43996343,0.00012691,2]
[326857977,1715518233723,-5000.0,0.00012691,2]
[326857978,1715518233732,-1148.06,0.00012691,2]
[326857979,1715518233740,-1694.7,0.00012691,2]
[326857980,1715518233750,-500.0,0.00012691,2]
[326857981,1715518233759,-595.03,0.00012691,2]
[326857982,1715518233768,-980.6,0.00012691,2]
[326857983,1715518233777,-532.92757752,0.00012691,2]
[326857984,1715518233786,-500.0,0.00012691,2]
[326857985,1715518233795,-500.0,0.00012691,2]
[326857986,1715518233804,-1130.27,0.00012691,2]
[326857987,1715518233814,-3001.18,0.00012691,2]
[326857988,1715518233823,-500.0,0.00012691,2]
[326857989,1715518233832,-592.5,0.00012691,2]
[326857990,1715518233841,-500.0,0.00012691,2]
[326857991,1715518233850,-500.0,0.00012691,2]
[326857992,1715518233859,-608.3,0.00012691,2]
[326857993,1715518233869,-500.0,0.00012691,2]
[326857994,1715518233878,-1693.57,0.00012691,2]
[326857995,1715518233886,-505.61778589,0.00012691,2]
[326857996,1715518233895,-1108.58,0.00012691,2]
[326857997,1715518233904,-917.19,0.00012691,2]
[326857998,1715518233913,-500.0,0.00012691,2]
[326857999,1715518233922,-5006.52,0.00012691,2]
[326858000,1715518233931,-512.09354656,0.00012691,2]
[326858001,1715518233940,-645.72,0.00012691,2]
[326858002,1715518233949,-278.04962651,0.00012691,2]
[326858003,1715518233958,-507.01278951,0.00012691,2]
[326858004,1715518233967,-1850.24,0.00012691,2]
[326858005,1715518233976,-783.62,0.00012691,2]
[326858006,1715518233985,-512.1981999,0.00012691,2]
[326858007,1715518233994,-1468.7,0.00012691,2]
[326858008,1715518234003,-500.0,0.00012691,2]
[326858009,1715518234012,-500.0,0.00012691,2]
[326858010,1715518234021,-500.0,0.00012691,2]
[326858011,1715518234030,-1448.8,0.00012691,2]
[326858012,1715518234039,-511.92607539,0.00012691,2]
[326858013,1715518234048,-3599.58,0.00012691,2]
[326858014,1715518234057,-914.44,0.00012691,2]
[326858015,1715518234065,-500.0,0.00012691,2]
[326858016,1715518234076,-1003.26,0.00012691,2]
[326858017,1715518234084,-5378.42,0.00012691,2]
[326858018,1715518234093,-500.0,0.00012691,2]
[326858019,1715518234102,-1989.69,0.00012691,2]
[326858020,1715518234111,-1647.25,0.00012691,2]
[326858021,1715518234120,-700.4,0.00012691,2]
[326858022,1715518234129,-2023.47,0.00012691,2]
[326858023,1715518234138,-1763.03,0.00012691,2]
[326858024,1715518234147,-500.0,0.00012691,2]
[326858025,1715518234156,-1467.2,0.00012691,2]
[326858026,1715518234165,-500.0,0.00012691,2]
[326858027,1715518234174,-500.0,0.00012691,2]
[326858028,1715518234183,-523.61719632,0.00012691,2]
[326858029,1715518234192,-576.07,0.00012691,2]
[326858030,1715518234201,-776.14,0.00012691,2]
[326858031,1715518234210,-1376.48,0.00012691,2]
[326858032,1715518234219,-1714.33,0.00012691,2]
[326858033,1715518234228,-500.0,0.00012691,2]
[326858034,1715518234237,-4052.92,0.00012691,2]
[326858035,1715518234247,-500.0,0.00012691,2]
[326858036,1715518234256,-1129.72,0.00012691,2]
[326858037,1715518234265,-500.0,0.00012691,2]
[326858038,1715518234274,-500.0,0.00012691,2]
[326858039,1715518234283,-936.27,0.00012691,2]
[326858040,1715518234291,-1397.42,0.00012691,2]
[326858041,1715518234300,-500.0,0.00012691,2]
[326858042,1715518234309,-500.0,0.00012691,2]
[326858043,1715518234319,-505.62302215,0.00012691,2]
[326858044,1715518234327,-4796.1,0.00012691,2]
[326858045,1715518234336,-500.0,0.00012691,2]
[326858046,1715518234345,-500.0,0.00012691,2]
[326858047,1715518234354,-549.37755298,0.00012691,2]
[326858048,1715518234363,-555.80076153,0.00012691,2]
[326858049,1715518234373,-5396.58,0.00012691,2]
[326858050,1715518234382,-6878.13,0.00012691,2]
[326858051,1715518234391,-500.0,0.00012691,2]
[326858052,1715518234400,-2914.29,0.00012691,2]
[326858053,1715518234409,-551.09,0.00012691,2]
[326858054,1715518234418,-691.26,0.00012691,2]
[326858055,1715518234427,-1255.86,0.00012691,2]
[326858056,1715518234436,-1437.87,0.00012691,2]
[326858057,1715518234445,-500.0,0.00012691,2]
[326858058,1715518234454,-2895.53,0.00012691,2]